bitfinex-derivatives/quotes_BTCF0:USTF0_20251210
["timestamp","ask_amount","ask_price","bid_price","bid_amount"]
[1765362263526,0.00016166,92759.0,92758.0,0.9584109]
[1765362264128,0.00016166,92759.0,92758.0,1.03562502]
[1765362264325,0.00116166,92759.0,92758.0,1.04462502]
[1765362264823,0.3608,92767.0,92766.0,0.09841]
[1765362265010,0.3608,92767.0,92766.0,0.51841]
[1765362265624,0.3608,92767.0,92766.0,0.60841]
[1765362266217,0.3608,92767.0,92766.0,1.00841]
[1765362266625,0.3608,92767.0,92766.0,1.01041]
[1765362267219,0.3608,92767.0,92766.0,1.08854534]
[1765362268429,0.3608,92767.0,92766.0,1.01141]
[1765362268930,0.3608,92767.0,92766.0,1.08854534]
[1765362269225,0.3608,92767.0,92766.0,1.01141]
[1765362271334,0.00016166,92776.0,92775.0,0.1116089]
[1765362271524,0.00016166,92776.0,92775.0,0.5316089]
[1765362272427,0.00016166,92776.0,92775.0,0.6226089]
[1765362273623,0.00116166,92776.0,92775.0,0.6226089]
[1765362276234,0.00116166,92776.0,92775.0,0.68034561]
[1765362278032,0.00116166,92776.0,92775.0,0.27034561]
[1765362278231,0.00116166,92776.0,92775.0,0.40034561]
[1765362279234,0.00116166,92776.0,92775.0,0.3426089]
[1765362279634,0.10856,92788.0,92787.0,0.0984075]
[1765362279839,0.10856,92788.0,92787.0,0.5584075]
[1765362280837,0.11256,92788.0,92787.0,0.5584075]
[1765362281230,0.11256,92788.0,92787.0,0.61608581]
[1765362281634,0.11356,92788.0,92787.0,0.5584075]
[1765362281836,0.11356,92788.0,92787.0,0.4684075]
[1765362282234,0.11356,92788.0,92787.0,0.52608084]
[1765362282439,0.11256,92788.0,92787.0,0.52608084]
[1765362282641,0.11356,92788.0,92787.0,0.52608084]
[1765362283032,0.10956,92788.0,92787.0,0.52608084]
[1765362283232,0.11056,92788.0,92787.0,0.52608084]
[1765362283433,0.11156,92788.0,92787.0,0.52608084]
[1765362283737,0.11256,92788.0,92787.0,0.52608084]
[1765362283936,0.1233374,92788.0,92787.0,0.45763]
[1765362284138,0.1233374,92788.0,92787.0,0.21763]
[1765362284334,0.1223374,92788.0,92787.0,0.08763]
[1765362284732,0.1213374,92788.0,92787.0,0.08763]
[1765362284947,0.1223374,92788.0,92787.0,0.08763]
[1765362285641,0.1213374,92788.0,92787.0,0.08763]
[1765362286039,0.1243374,92788.0,92787.0,0.08763]
[1765362286645,0.1253374,92788.0,92787.0,0.08763]
[1765362287645,0.0107783,92781.0,92778.0,0.00016166]
[1765362287943,0.3608,92780.0,92779.0,0.0107785]
[1765362289141,0.3608,92780.0,92779.0,0.3607785]
[1765362289936,0.3628,92780.0,92779.0,0.3607785]
[1765362290333,0.3608,92780.0,92779.0,0.41844862]
[1765362290536,0.3628,92780.0,92779.0,0.41844862]
[1765362290739,0.3638,92780.0,92779.0,0.10767012]
[1765362290934,0.3638,92780.0,92779.0,0.05767012]
[1765362291247,0.3638,92780.0,92779.0,0.25]
[1765362291445,0.3628,92780.0,92779.0,0.25]
[1765362291645,0.3638,92780.0,92779.0,0.25]
[1765362292241,0.3628,92780.0,92779.0,0.25]
[1765362292439,0.3638,92780.0,92779.0,0.25]
[1765362294956,0.3628,92780.0,92779.0,0.25]
[1765362295142,0.0107785,92779.0,92778.0,0.00016166]
[1765362295342,0.0107793,92772.0,92771.0,0.07713534]
[1765362295655,0.01078,92766.0,92763.0,0.07713534]
[1765362295850,0.01078,92766.0,92763.0,0.03]
[1765362296247,0.0107806,92761.0,92759.0,0.07713534]
[1765362296455,0.3608,92764.0,92759.0,0.4307807]
[1765362296664,0.0107803,92763.0,92759.0,0.1307807]
[1765362297658,0.0107803,92763.0,92759.0,0.1327807]
[1765362297871,0.1111203,92763.0,92762.0,0.10202]
[1765362298361,0.1111203,92763.0,92762.0,0.15992951]
[1765362299268,0.1111203,92763.0,92762.0,0.16092951]
[1765362300074,0.1111203,92763.0,92762.0,0.16292951]
[1765362300762,0.86164,92764.0,92763.0,0.10202]
[1765362300962,0.9907,92764.0,92763.0,0.17202]
[1765362301159,0.9907,92764.0,92763.0,0.05038]
[1765362301358,0.9907,92764.0,92763.0,0.10202]
[1765362301567,0.9907,92764.0,92763.0,0.05038]
[1765362301770,0.9907,92764.0,92762.0,0.003]
[1765362301771,0.1111203,92763.0,92762.0,0.003]
[1765362301970,0.0107808,92759.0,92758.0,0.05790951]
[1765362302163,0.0107808,92759.0,92752.0,0.00016166]
[1765362302164,0.1111215,92753.0,92752.0,0.00016166]
[1765362302563,0.1111215,92753.0,92752.0,0.08912962]
[1765362303572,0.1111215,92753.0,92752.0,0.10218166]
[1765362304672,0.6120015,92753.0,92752.0,0.00016166]
[1765362304875,0.6130015,92753.0,92752.0,0.06054166]
[1765362305173,0.6140015,92753.0,92752.0,0.12318166]
[1765362306262,0.6140015,92753.0,92752.0,0.07154166]
[1765362306464,0.6140015,92753.0,92752.0,0.02116166]
[1765362307171,0.6140015,92753.0,92752.0,0.07154166]
[1765362307665,0.6140015,92753.0,92752.0,0.12318166]
[1765362307871,0.6140015,92753.0,92752.0,0.02116166]
[1765362309073,0.111122,92749.0,92748.0,0.10223542]
[1765362310376,0.112122,92749.0,92748.0,0.11223542]
[1765362310681,0.112122,92749.0,92748.0,0.00172103]
[1765362310976,0.112122,92749.0,92748.0,0.04691103]
[1765362311271,0.113122,92749.0,92748.0,0.09935103]
[1765362313478,0.062842,92749.0,92748.0,0.09935103]
[1765362313774,0.109272,92749.0,92748.0,0.09935103]
[1765362318676,0.109272,92749.0,92748.0,0.50935103]
[1765362318871,0.002,92749.0,92748.0,0.50935103]
[1765362319083,0.50296,92749.0,92748.0,0.54793899]
[1765362320173,0.50296,92749.0,92748.0,0.50935103]
[1765362322788,0.503,92749.0,92748.0,0.50935103]
[1765362323178,0.503,92749.0,92748.0,0.56726054]
[1765362324082,0.54908,92749.0,92748.0,0.50935103]
[1765362324281,0.59551,92749.0,92748.0,0.11935103]
[1765362324786,0.59551,92749.0,92748.0,0.34935103]
[1765362325183,0.59551,92749.0,92748.0,0.09935103]
[1765362325577,0.59551,92749.0,92748.0,0.11013313]
[1765362325776,0.59551,92749.0,92748.0,0.39013313]
[1765362329780,0.59551,92749.0,92748.0,0.37935103]
[1765362329986,0.59551,92749.0,92748.0,0.01072103]
[1765362330187,0.59551,92749.0,92740.0,0.00107829]
[1765362330188,0.09251,92741.0,92740.0,0.00107829]
[1765362330485,0.95431,92741.0,92740.0,0.00107829]
[1765362331091,0.97731501,92741.0,92740.0,0.00107829]
[1765362331384,0.95531,92741.0,92740.0,0.00807829]
[1765362331591,0.95631,92741.0,92740.0,0.01607829]
[1765362331792,0.09251,92734.0,92733.0,0.058051]
[1765362331983,0.6042937,92734.0,92733.0,0.058051]
[1765362332377,0.6042937,92734.0,92732.0,0.058051]
[1765362332582,0.09251,92733.0,92732.0,0.058051]
[1765362333385,0.5117837,92734.0,92721.0,0.0108614]
[1765362333386,0.1032939,92732.0,92731.0,0.058051]
[1765362333586,0.09251,92731.0,92730.0,0.058051]
[1765362333786,0.45331,92731.0,92730.0,0.058051]
[1765362334384,0.1320142,92730.0,92729.0,0.058051]
[1765362334888,0.1320142,92730.0,92721.0,0.0108614]
[1765362334889,0.1320142,92730.0,92728.0,0.058051]
[1765362335089,0.09251,92729.0,92728.0,0.058051]
[1765362335498,0.1032944,92728.0,92727.0,0.058051]
[1765362336300,0.1032944,92728.0,92727.0,0.105401]
[1765362337488,0.1032944,92728.0,92727.0,0.04735]
[1765362337997,0.1182944,92728.0,92727.0,0.09427]
[1765362338295,0.1282944,92728.0,92727.0,0.09527]
[1765362339099,0.1272944,92728.0,92727.0,0.09527]
[1765362339999,0.6283344,92728.0,92727.0,0.10527]
[1765362340203,0.9891344,92728.0,92727.0,0.10527]
[1765362340388,0.9751344,92728.0,92727.0,0.10427]
[1765362340589,0.47931,92728.0,92727.0,0.50427]
[1765362340797,0.98035,92728.0,92727.0,0.50427]
[1765362340994,0.98039,92728.0,92727.0,0.50427]
[1765362341191,0.97939,92728.0,92727.0,0.50427]
[1765362341392,0.97839,92728.0,92727.0,0.50427]
[1765362341697,0.97839,92728.0,92727.0,0.50327]
[1765362341698,0.96439,92728.0,92727.0,0.50327]
[1765362342000,0.97839,92728.0,92727.0,0.50427]
[1765362343289,0.97839,92728.0,92727.0,0.50327]
[1765362343494,0.97839,92728.0,92727.0,0.50427]
[1765362344188,0.96839,92728.0,92727.0,0.50427]
[1765362344383,0.97639,92728.0,92727.0,0.50527]
[1765362344897,0.88388,92728.0,92727.0,0.50527]
[1765362345096,0.3828,92728.0,92727.0,0.50527]
[1765362345305,0.88388,92728.0,92727.0,0.563321]
[1765362345689,0.97306,92728.0,92727.0,0.563321]
[1765362346290,0.97306,92728.0,92727.0,0.253321]
[1765362346588,0.95906,92728.0,92727.0,0.662321]
[1765362346900,0.97306,92728.0,92727.0,0.662321]
[1765362347490,0.97306,92728.0,92727.0,0.182321]
[1765362347691,0.0999645,92727.0,92726.0,0.058051]
[1765362349390,0.0999645,92727.0,92725.0,0.058051]
[1765362349594,0.0999651,92722.0,92721.0,7.63e-05]
[1765362349789,0.4899651,92722.0,92721.0,7.63e-05]
[1765362351003,0.5119651,92722.0,92721.0,0.0010763]
[1765362351503,0.2619651,92722.0,92721.0,0.0010763]
[1765362352389,0.5119651,92722.0,92721.0,0.0010763]
[1765362352591,0.4959651,92722.0,92721.0,0.0010763]
[1765362352793,0.2379651,92722.0,92721.0,7.63e-05]
[1765362352989,0.2459651,92722.0,92721.0,0.0010763]
[1765362353191,0.4459651,92722.0,92721.0,0.0010763]
[1765362359007,0.4459651,92722.0,92715.0,0.00107858]
[1765362359008,0.0999658,92716.0,92715.0,0.00107858]
[1765362359196,0.9510858,92716.0,92715.0,0.00107858]
[1765362359400,0.9510858,92716.0,92715.0,0.04558858]
[1765362360194,0.9580858,92716.0,92715.0,0.00207858]
[1765362360503,0.9740858,92716.0,92715.0,0.00207858]
[1765362360804,0.9670858,92716.0,92715.0,0.04558858]
[1765362361011,0.6760858,92716.0,92715.0,0.09229858]
[1765362361514,0.6260858,92716.0,92715.0,0.09229858]
[1765362361897,0.6260858,92716.0,92715.0,0.04658858]
[1765362362106,0.6260858,92716.0,92715.0,0.00207858]
[1765362362611,1.0260858,92716.0,92715.0,0.00207858]
[1765362363313,0.0999664,92711.0,92710.0,0.05463473]
[1765362363504,0.08918,92691.0,92690.0,0.07821421]
[1765362363711,0.962005,92691.0,92690.0,0.09107887]
[1765362363905,1.362005,92691.0,92690.0,0.00107887]
[1765362364508,0.1123,92676.0,92675.0,0.05122817]
[1765362364811,0.6135363,92676.0,92675.0,0.13122817]
[1765362365216,0.6135363,92676.0,92675.0,0.17693817]
[1765362366415,0.6265363,92676.0,92675.0,0.17693817]
[1765362366714,0.6265363,92676.0,92675.0,0.13122817]
[1765362366906,0.6265363,92676.0,92675.0,0.00671817]
[1765362367110,0.6315363,92676.0,92675.0,0.00771817]
[1765362367314,1.0615363,92676.0,92675.0,0.00771817]
[1765362367612,0.0999716,92666.0,92659.0,8.889e-05]
[1765362367826,1.3820479,92666.0,92659.0,8.889e-05]
[1765362368908,0.08918,92651.0,92650.0,0.09022]
[1765362369105,0.59038,92651.0,92650.0,0.17022]
[1765362369305,0.59038,92651.0,92650.0,0.08]
[1765362369510,0.59038,92651.0,92650.0,0.17022]
[1765362369719,0.59038,92651.0,92650.0,0.1810135]
[1765362369921,0.59051761,92651.0,92650.0,0.17022]
[1765362370110,0.59351761,92651.0,92650.0,0.08]
[1765362370418,0.59351761,92651.0,92650.0,0.12817]
[1765362371016,0.04863761,92651.0,92650.0,0.5832035]
[1765362371215,0.00313761,92651.0,92650.0,0.9440035]
[1765362371405,0.47293761,92651.0,92650.0,0.9440035]
[1765362371601,0.47393761,92651.0,92650.0,0.9440035]
[1765362371810,0.47593761,92651.0,92650.0,0.9440035]
[1765362372516,0.47593761,92651.0,92650.0,1.3440035]
[1765362372708,0.00413761,92651.0,92650.0,1.3440035]
[1765362374723,0.00113761,92651.0,92650.0,1.3440035]
[1765362375018,0.01413761,92651.0,92650.0,0.9440035]
[1765362375212,0.10626761,92651.0,92650.0,0.9440035]
[1765362375522,0.06472761,92651.0,92650.0,0.9440035]
[1765362375920,0.10926761,92651.0,92650.0,0.9440035]
[1765362376119,0.09626761,92651.0,92650.0,0.53321]
[1765362376315,0.10926761,92651.0,92650.0,0.17241]
[1765362377417,0.10926761,92651.0,92650.0,0.08]
[1765362377822,0.1029244,92642.0,92641.0,0.40388]
[1765362378023,0.6046044,92642.0,92641.0,0.56388]
[1765362378220,0.6046044,92642.0,92641.0,0.12308]
[1765362378523,0.6046044,92642.0,92641.0,0.08]
[1765362378722,0.09213,92641.0,92640.0,0.00107945]
[1765362378923,0.51213,92641.0,92640.0,0.00107945]
[1765362379126,0.51224847,92641.0,92640.0,0.00107945]
[1765362379338,0.51224847,92641.0,92619.0,0.44952]
[1765362379339,0.09213,92620.0,92619.0,0.44952]
[1765362379536,0.60486007,92620.0,92619.0,0.08]
[1765362379827,1.00486007,92620.0,92619.0,0.08]
[1765362380027,0.60486007,92620.0,92619.0,0.08]
[1765362380220,0.90486007,92620.0,92619.0,0.08]
[1765362380418,0.1312874,92616.0,92615.0,0.00107974]
[1765362380824,0.1312874,92616.0,92615.0,0.08979974]
[1765362381333,0.50196,92616.0,92615.0,0.08979974]
[1765362381825,0.54955,92616.0,92615.0,0.08979974]
[1765362382128,0.62745,92616.0,92615.0,0.08979974]
[1765362382329,0.62745,92616.0,92615.0,0.00107974]
[1765362383034,0.64245,92616.0,92615.0,0.00107974]
[1765362383328,0.64245,92616.0,92615.0,0.08979974]
[1765362383732,0.6532474,92616.0,92615.0,0.08979974]
[1765362384622,0.1512874,92616.0,92615.0,0.08979974]
[1765362384822,0.6532474,92616.0,92615.0,0.08979974]
[1765362385333,0.6532474,92616.0,92615.0,0.00107974]
[1765362385933,0.6532474,92616.0,92615.0,0.08979974]
[1765362386322,0.6532474,92616.0,92615.0,0.00107974]
[1765362387230,0.0107997,92597.0,92590.0,0.36188004]
[1765362387429,0.10305198,92597.0,92596.0,0.17885473]
[1765362387626,0.10305198,92597.0,92596.0,0.09013473]
[1765362387832,0.10305198,92597.0,92596.0,0.00013473]
[1765362388028,0.10305198,92597.0,92596.0,0.04321473]
[1765362388236,0.04454,92571.0,92570.0,0.0995228]
[1765362388529,0.5603923,92574.0,92573.0,0.08872]
[1765362388735,0.5603923,92574.0,92573.0,0.58872]
[1765362388934,0.6049323,92574.0,92573.0,0.58872]
[1765362389123,0.60503609,92574.0,92573.0,0.20872]
[1765362389432,0.60503609,92574.0,92573.0,0.08]
[1765362389820,0.1029333,92566.0,92563.0,0.00021585]
[1765362390028,0.4637333,92566.0,92563.0,0.00021585]
[1765362390228,0.4637333,92566.0,92545.0,0.3608]
[1765362390229,0.09213,92546.0,92545.0,0.3608]
[1765362390438,0.59437061,92546.0,92545.0,0.4508]
[1765362391531,0.59449061,92546.0,92545.0,0.53952]
[1765362392237,0.59449061,92546.0,92545.0,0.09]
[1765362392735,0.59949061,92546.0,92545.0,0.17872]
[1765362392936,0.11025061,92546.0,92545.0,0.09]
[1765362393137,0.53053061,92546.0,92545.0,0.09]
[1765362393639,0.53053061,92546.0,92545.0,0.17872]
[1765362393935,0.54133621,92546.0,92545.0,0.09]
[1765362394330,0.09213,92541.0,92540.0,0.00108062]
[1765362394533,0.09213,92541.0,92540.0,0.08108062]
[1765362394836,0.47213,92541.0,92540.0,0.00108062]
[1765362395134,0.09213,92541.0,92540.0,0.00108062]
[1765362395340,0.09213,92541.0,92540.0,0.04416062]
[1765362395522,0.95461,92541.0,92540.0,0.00108062]
[1765362395924,0.96661,92541.0,92540.0,0.00108062]
[1765362396127,0.09213,92523.0,92522.0,0.36092142]
[1765362396338,0.59468921,92523.0,92522.0,0.44092142]
[1765362397139,0.59468921,92523.0,92522.0,0.48400142]
[1765362397441,0.59468921,92523.0,92522.0,0.54044982]
[1765362398238,0.59468921,92523.0,92522.0,0.48400142]
[1765362398540,0.59468921,92523.0,92522.0,0.08012142]
[1765362398541,0.60668921,92523.0,92522.0,0.08012142]
[1765362398931,0.60668921,92523.0,92522.0,0.00012142]
[1765362399333,1.00668921,92523.0,92522.0,0.00012142]
[1765362399637,1.00668921,92523.0,92522.0,0.08884142]
[1765362399638,0.10820921,92523.0,92522.0,0.08884142]
[1765362399841,0.61088921,92523.0,92522.0,0.08884142]
[1765362400538,0.61088921,92523.0,92522.0,0.00012142]
[1765362401044,1.00088921,92523.0,92522.0,0.00012142]
[1765362401428,0.61088921,92523.0,92522.0,0.08419142]
[1765362401632,0.10820921,92523.0,92522.0,0.04078142]
[1765362401833,0.61088921,92523.0,92522.0,0.00012142]
[1765362402135,0.61088921,92523.0,92522.0,0.08419142]
[1765362402344,0.61088921,92523.0,92522.0,0.00012142]
[1765362402639,0.61092921,92523.0,92522.0,0.08419142]
[1765362403444,0.01607921,92523.0,92522.0,0.48419142]
[1765362403742,0.05984921,92523.0,92522.0,0.49419142]
[1765362403942,0.50568811,92523.0,92522.0,0.00012142]
[1765362404134,1.29648811,92523.0,92522.0,0.00012142]
[1765362404741,0.86648811,92523.0,92522.0,0.00012142]
[1765362404947,1.17661062,92523.0,92522.0,0.00012142]
[1765362405142,0.86661062,92523.0,92522.0,0.00012142]
[1765362405548,0.77876251,92523.0,92522.0,0.09499982]
[1765362405742,0.50245251,92523.0,92522.0,0.08419142]
[1765362405941,0.50245251,92523.0,92522.0,0.00012142]
[1765362407052,0.86245251,92523.0,92522.0,0.00012142]
[1765362407346,0.86245251,92523.0,92480.0,0.0108132]
[1765362407347,0.095302,92491.0,92489.0,0.3608]
[1765362407653,0.959142,92491.0,92484.0,0.02413]
[1765362407949,0.959142,92491.0,92490.0,0.1092812]
[1765362408149,0.95922951,92491.0,92490.0,0.0010812]
[1765362408649,0.96022951,92491.0,92490.0,0.0070812]
[1765362408850,0.45718951,92491.0,92490.0,0.1152812]
[1765362409147,0.36188751,92491.0,92490.0,0.1260933]
[1765362409450,0.81716751,92491.0,92490.0,0.5060933]
[1765362409745,0.36188751,92491.0,92490.0,0.5060933]
[1765362409946,0.00108751,92491.0,92490.0,0.5060933]
[1765362410349,0.00208751,92491.0,92490.0,0.5670933]
[1765362411946,0.00016213,92500.0,92499.0,0.0108111]
[1765362412147,0.00016213,92500.0,92499.0,0.4190111]
[1765362412349,0.00016213,92500.0,92499.0,0.5138922]
[1765362412654,0.00016213,92500.0,92499.0,0.5238922]
[1765362412950,0.00028192,92500.0,92499.0,0.5238922]
[1765362413138,0.00128192,92500.0,92499.0,0.5248922]
[1765362413450,0.00128192,92500.0,92499.0,0.27488298]
[1765362413652,0.00128192,92500.0,92499.0,0.48488298]
[1765362413846,0.08577192,92500.0,92499.0,0.4658811]
[1765362414446,0.00228192,92500.0,92499.0,0.4708811]
[1765362415543,0.00228192,92500.0,92499.0,0.1008811]
[1765362415741,0.00228192,92500.0,92499.0,0.5008811]
[1765362417251,0.00216042,92500.0,92499.0,0.5808811]
[1765362417446,0.50316,92523.0,92514.0,0.0948793]
[1765362417646,0.50316,92523.0,92514.0,0.4548793]
[1765362418147,0.40457,92515.0,92514.0,0.0948793]
[1765362418348,0.44529,92515.0,92514.0,0.0948793]
[1765362418541,0.08449,92507.0,92506.0,0.3608]
[1765362418741,0.0953002,92507.0,92506.0,0.3608]
[1765362419255,0.12236295,92507.0,92506.0,0.3608]
[1765362419458,0.08449,92506.0,92505.0,0.00016213]
[1765362419753,0.11155275,92506.0,92505.0,0.00016213]
[1765362420143,0.11155275,92506.0,92505.0,0.08423213]
[1765362420741,0.07083275,92506.0,92505.0,0.47423213]
[1765362421050,0.07083275,92506.0,92505.0,0.21423213]
[1765362421251,0.07083275,92506.0,92505.0,0.51423213]
[1765362421452,0.02706275,92506.0,92505.0,0.51423213]
[1765362421650,0.03206275,92506.0,92505.0,0.12523213]
[1765362421953,0.11655275,92506.0,92505.0,0.51523213]
[1765362422156,0.11655275,92506.0,92505.0,0.31523213]
[1765362422464,0.03206275,92506.0,92505.0,0.31523213]
[1765362423054,0.03506275,92506.0,92505.0,0.31623213]
[1765362424274,0.13036305,92506.0,92505.0,0.31623213]
[1765362425351,0.11955275,92506.0,92505.0,0.31623213]
[1765362425763,0.07883275,92506.0,92505.0,0.31623213]
[1765362426560,0.03506275,92506.0,92505.0,0.31623213]
[1765362428066,0.86397096,92515.0,92505.0,0.31623213]
[1765362428067,0.36089096,92515.0,92514.0,0.08407]
[1765362428257,0.3608,92532.0,92529.0,0.02413]
[1765362428559,0.0108049,92553.0,92545.0,0.08407]
[1765362428758,0.0952949,92553.0,92552.0,0.04066]
[1765362428957,0.04377,92542.0,92541.0,0.4556761]
[1765362429262,0.04381387,92542.0,92541.0,0.6056761]
[1765362429463,4.387e-05,92542.0,92541.0,0.4556761]
[1765362429655,4.387e-05,92542.0,92541.0,0.5356761]
[1765362429854,4.387e-05,92542.0,92541.0,0.8856761]
[1765362430057,4.387e-05,92542.0,92541.0,0.8646761]
[1765362430254,4.387e-05,92542.0,92541.0,0.8054822]
[1765362430861,0.00804387,92542.0,92541.0,0.8064822]
[1765362431357,0.01404387,92542.0,92541.0,0.8074822]
[1765362431658,0.01204387,92542.0,92541.0,0.8774822]
[1765362431965,7e-08,92542.0,92541.0,0.8774822]
[1765362432267,0.3608,92579.0,92569.0,0.15321]
[1765362432455,0.3608,92591.0,92574.0,0.15321]
[1765362432456,0.07992,92575.0,92574.0,0.15321]
[1765362432655,0.07992,92575.0,92567.0,0.3608]
[1765362432656,0.20394,92583.0,92567.0,0.3608]
[1765362432866,0.15724,92568.0,92567.0,0.9248132]
[1765362433364,0.20513,92574.0,92573.0,0.15258]
[1765362433568,0.15843,92574.0,92573.0,0.15258]
[1765362434158,0.1692323,92574.0,92573.0,0.15258]
[1765362434762,0.1762323,92574.0,92573.0,0.15358]
[1765362435657,0.1812323,92574.0,92573.0,0.15458]
[1765362435865,0.17043,92574.0,92573.0,0.15458]
[1765362436362,0.17043,92574.0,92573.0,0.15258]
[1765362436363,0.15843,92574.0,92573.0,0.15258]
[1765362436563,0.16843,92574.0,92573.0,0.15458]
[1765362436963,0.2095,92574.0,92573.0,0.15358]
[1765362437172,0.2155,92574.0,92573.0,0.15458]
[1765362437868,0.6445,92574.0,92573.0,0.002]
[1765362438059,0.3545,92574.0,92573.0,0.002]
[1765362438363,0.15843,92559.0,92554.0,0.3608]
[1765362438568,0.6726341,92559.0,92554.0,0.3608]
[1765362439469,0.0108057,92545.0,92543.0,0.3608]
[1765362439657,0.15843,92544.0,92543.0,0.4208]
[1765362439857,0.15843,92544.0,92543.0,0.3608]
[1765362440571,0.15843,92544.0,92543.0,0.51338]
[1765362440969,0.15843,92544.0,92543.0,0.524186]
[1765362441266,0.16143,92544.0,92543.0,0.524186]
[1765362441564,0.16543,92544.0,92543.0,0.935186]
[1765362441755,0.16543,92544.0,92543.0,0.595186]
[1765362441956,0.08515,92544.0,92543.0,0.58438]
[1765362442161,0.16143,92544.0,92543.0,0.51338]
[1765362442370,0.16543,92544.0,92543.0,0.51438]
[1765362442565,0.16243,92544.0,92543.0,0.51438]
[1765362442880,0.16543,92544.0,92543.0,0.51438]
[1765362443166,0.16243,92544.0,92543.0,0.51438]
[1765362443470,0.16543,92544.0,92543.0,0.51438]
[1765362444466,0.1762358,92544.0,92543.0,0.51438]
[1765362444861,0.16543,92544.0,92543.0,0.89438]
[1765362445067,0.16543,92544.0,92543.0,0.51438]
[1765362446460,0.007,92544.0,92543.0,0.90438]
[1765362446762,0.007,92544.0,92543.0,0.92438]
[1765362446963,0.16543,92544.0,92543.0,0.92438]
[1765362447372,0.16543,92544.0,92543.0,0.51438]
[1765362450265,0.16543,92544.0,92543.0,0.94438]
[1765362450873,0.16543,92544.0,92543.0,0.70438]
[1765362451269,0.2115,92544.0,92543.0,0.51438]
[1765362452965,0.7147,92544.0,92543.0,0.07787]
[1765362453971,0.7147,92544.0,92543.0,0.15358]
[1765362454665,0.7147,92544.0,92543.0,0.19216576]
[1765362455068,0.7147,92544.0,92543.0,0.15358]
[1765362459181,0.7147,92544.0,92543.0,0.001]
[1765362459481,0.15843,92535.0,92534.0,0.00016203]
[1765362459774,0.15843,92530.0,92529.0,0.03877036]
[1765362460072,0.07283,92528.0,92527.0,0.03877036]
[1765362460279,0.14691,92528.0,92527.0,0.03877036]
[1765362460580,0.14691,92528.0,92527.0,0.17985036]
[1765362460877,0.14691,92528.0,92527.0,0.14108]
[1765362461073,0.14691,92528.0,92527.0,0.50108]
[1765362461374,0.14691,92528.0,92527.0,0.53983363]
[1765362462163,0.14691,92528.0,92527.0,0.14108]
[1765362462475,0.14691,92528.0,92527.0,0.14208]
[1765362462679,0.14891,92528.0,92527.0,0.14208]
[1765362463182,0.14891,92528.0,92527.0,0.18083363]
[1765362463874,0.14891,92528.0,92527.0,0.03975363]
[1765362464180,0.14891,92528.0,92527.0,0.18083363]
[1765362465072,0.14891,92528.0,92527.0,0.14208]
[1765362465274,0.50508,92528.0,92527.0,0.59995865]
[1765362465470,0.50508,92528.0,92527.0,0.54208]
[1765362465664,0.002,92528.0,92527.0,0.54208]
[1765362466063,0.002,92528.0,92527.0,0.62208]
[1765362466581,0.002,92528.0,92527.0,0.54208]
[1765362467981,0.002,92528.0,92527.0,0.62208]
[1765362468881,0.002,92528.0,92527.0,0.54208]
[1765362469682,0.50308,92542.0,92540.0,0.0108062]
[1765362469977,0.04212,92560.0,92540.0,0.0108062]
[1765362469978,0.0108055,92547.0,92546.0,0.14108]
[1765362470172,0.0836355,92547.0,92546.0,0.54108]
[1765362470384,0.0836355,92547.0,92546.0,0.59932033]
[1765362470880,0.1577155,92547.0,92546.0,0.24932033]
[1765362471086,0.1577155,92547.0,92546.0,0.47932033]
[1765362471287,0.1617155,92547.0,92546.0,0.47932033]
[1765362471781,0.0148055,92547.0,92546.0,0.47932033]
[1765362472174,0.004,92547.0,92546.0,0.47932033]
[1765362472780,0.004,92547.0,92546.0,0.48032033]
[1765362472781,0.008,92547.0,92546.0,0.48032033]
[1765362473285,0.008,92547.0,92546.0,0.42208]
[1765362473475,0.007,92547.0,92546.0,0.42208]
[1765362474681,0.003,92547.0,92546.0,0.78288]
[1765362474880,0.004,92547.0,92546.0,0.78188]
[1765362475076,0.008,92547.0,92546.0,0.78288]
[1765362475275,0.004,92547.0,92546.0,0.78288]
[1765362475580,0.007,92547.0,92546.0,0.78288]
[1765362475886,0.003,92547.0,92546.0,0.78288]
[1765362476088,0.005,92547.0,92546.0,0.78288]
[1765362476686,0.002,92547.0,92546.0,0.78188]
[1765362476890,0.005,92547.0,92546.0,0.78288]
[1765362477486,0.003,92547.0,92546.0,0.78288]
[1765362477788,0.006,92547.0,92546.0,0.78288]
[1765362478087,0.003,92547.0,92546.0,0.78288]
[1765362478285,0.005,92547.0,92546.0,0.78288]
[1765362478679,0.003,92547.0,92546.0,0.78288]
[1765362478880,0.006,92547.0,92546.0,0.78288]
[1765362480479,0.005,92547.0,92546.0,0.78288]
[1765362481188,0.14891,92547.0,92546.0,0.78188]
[1765362481381,0.005,92547.0,92546.0,0.78288]
[1765362481582,0.005,92547.0,92546.0,0.86288]
[1765362481983,0.00467595,92547.0,92546.0,0.86288]
[1765362482586,0.50304,92560.0,92552.0,0.14108]
[1765362482782,0.3608,92564.0,92552.0,0.6318849]
[1765362482991,0.3716025,92573.0,92572.0,0.14108]
[1765362483186,0.5185125,92573.0,92572.0,0.14108]
[1765362483893,0.1577128,92570.0,92569.0,0.0387877]
[1765362484283,0.1577128,92570.0,92569.0,0.5618829]
[1765362484988,0.07283,92571.0,92570.0,0.14108]
[1765362485186,0.14691,92571.0,92570.0,0.14108]
[1765362485488,0.5028,92579.0,92569.0,0.0515906]
[1765362485489,0.157712,92577.0,92576.0,0.14108]
[1765362486191,0.5028,92579.0,92569.0,0.06018155]
[1765362486192,0.14691,92570.0,92569.0,0.14308]
[1765362486390,0.14691,92570.0,92569.0,0.002]
[1765362486587,0.15091,92570.0,92569.0,0.001]
[1765362486984,0.95091,92570.0,92561.0,0.03873493]
[1765362487190,0.95091,92570.0,92553.0,0.05818155]
[1765362487191,0.1577144,92556.0,92555.0,0.03873493]
[1765362487494,0.1577147,92554.0,92553.0,0.03873493]
[1765362487791,0.14691,92553.0,92552.0,0.03873493]
[1765362489195,0.0529249,92552.0,92544.0,0.19926155]
[1765362489502,0.14691,92545.0,92544.0,0.19926155]
[1765362489792,0.1077157,92545.0,92544.0,0.19926155]
[1765362489979,0.09691,92545.0,92544.0,0.19926155]
[1765362490588,0.1077157,92545.0,92544.0,0.19926155]
[1765362491091,0.1077157,92545.0,92544.0,0.14108]
[1765362491293,0.1117157,92545.0,92544.0,0.14108]